bitfinex/quotes_SOLUSD_20230113
["timestamp","ask_amount","ask_price","bid_price","bid_amount"]
[1673640156946,20.0,17.276,17.245,97.3298469]
[1673640157261,43.41,17.277,17.251,97.37672672]
[1673640157579,109.9973,17.28,17.251,97.37672672]
[1673640157580,43.42,17.275,17.251,97.37672672]
[1673640157772,109.9973,17.28,17.253,97.42454799]
[1673640158521,43.41,17.279,17.253,97.42454799]
[1673640158727,43.41,17.279,17.254,20.0]
[1673640158926,20.0,17.278,17.253,97.42454799]
[1673640159133,20.0,17.278,17.243,97.0972076]
[1673640159352,73.3791928,17.277,17.244,2.95659648]
[1673640159562,20.0,17.276,17.244,2.95659648]
[1673640159775,20.0,17.275,17.245,97.3298469]
[1673640160077,20.0,17.274,17.247,97.19982587]
[1673640160287,20.0,17.272,17.249,97.55846902]
[1673640160503,43.76365,17.271,17.251,97.37672672]
[1673640160825,73.3991928,17.271,17.253,97.42454799]
[1673640161031,43.43,17.271,17.255,97.49848965]
[1673640161231,43.43,17.271,17.257,97.20149078]
[1673640161445,49.9691928,17.278,17.259,97.48782435]
[1673640161783,20.0,17.278,17.261,97.52545839]
[1673640161989,20.0,17.278,17.251,97.37672672]
[1673640161990,43.41,17.277,17.251,97.37672672]
[1673640162192,43.41,17.277,17.253,97.42454799]
[1673640162514,20.0,17.276,17.255,97.49848965]
[1673640162710,20.0,17.276,17.257,97.20149078]
[1673640162920,43.42,17.275,17.258,2.9541979]
[1673640163142,20.0,17.274,17.259,97.48782435]
[1673640163360,20.0,17.274,17.261,97.52545839]
[1673640163674,20.0,17.272,17.251,97.37672672]
[1673640163862,20.0,17.271,17.251,100.33212342]
[1673640164188,93.3991928,17.271,17.253,97.42454799]
[1673640164409,93.3991928,17.271,17.255,97.49848965]
[1673640164605,93.3991928,17.271,17.257,97.20149078]
[1673640164816,63.43,17.271,17.259,97.48782435]
[1673640165137,63.43,17.271,17.26,2.95385556]
[1673640165339,63.43,17.271,17.255,97.49848965]
[1673640165551,63.43,17.271,17.254,58.39722968]
[1673640165552,20.0,17.27,17.257,97.20149078]
[1673640165769,20.0,17.27,17.258,2.9541979]
[1673640165976,20.0,17.27,17.259,97.48782435]
[1673640166288,20.0,17.27,17.255,97.49848965]
[1673640166616,17.34092454,17.269,17.255,100.4532012]
[1673640166813,17.34092454,17.269,17.254,58.39722968]
[1673640166814,20.0,17.268,17.257,97.20149078]
[1673640167030,43.44,17.269,17.257,97.20149078]
[1673640167238,43.43,17.27,17.257,97.20149078]
[1673640167454,20.0,17.269,17.255,97.49848965]
[1673640167968,43.44,17.268,17.255,97.49848965]
[1673640168168,130.4687,17.298,17.251,97.37672672]
[1673640168385,130.4687,17.298,17.253,97.42454799]
[1673640168616,49.9691928,17.283,17.255,97.49848965]
[1673640168819,49.9691928,17.283,17.257,97.20149078]
[1673640168820,43.42,17.277,17.257,97.20149078]
[1673640169032,43.42,17.277,17.258,6.66822]
[1673640169346,20.0,17.283,17.261,97.52545839]
[1673640169554,20.0,17.283,17.261,104.19251839]
[1673640169763,137.4596,17.289,17.262,124.20139989]
[1673640169968,43.39,17.286,17.27,38.05]
[1673640170177,43.39,17.287,17.263,6.66629]
[1673640170385,178.3,17.286,17.263,6.66629]
[1673640170605,20.0,17.285,17.254,97.1146115]
[1673640170804,49.9691928,17.285,17.256,97.96320118]
[1673640171012,59.9383856,17.284,17.256,104.63220118]
[1673640171218,40.0,17.283,17.258,97.88921837]
[1673640171431,40.0,17.283,17.26,97.99536948]
[1673640171432,83.4,17.283,17.26,97.99536948]
[1673640171851,291.6691928,17.283,17.262,97.53471989]
[1673640172062,17.0,17.282,17.26,97.99536948]
[1673640172271,20.0,17.281,17.26,97.99536948]
[1673640172500,20.0,17.279,17.252,97.27208466]
[1673640172697,20.0,17.278,17.252,97.27208466]
[1673640172910,20.0,17.277,17.246,97.09992979]
[1673640173119,20.0,17.276,17.248,97.01505545]
[1673640173332,20.0,17.275,17.25,97.90963294]
[1673640173531,20.0,17.274,17.248,140.50505545]
[1673640173747,20.0,17.273,17.248,143.46096622]
[1673640173961,20.0,17.273,17.25,97.90963294]
[1673640174284,20.0,17.271,17.242,97.40896041]
[1673640174501,20.0,17.27,17.251,97.37672672]
[1673640174692,20.0,17.27,17.248,97.01505545]
[1673640174911,63.43,17.27,17.251,43.48]
[1673640175111,63.43,17.27,17.252,97.27208466]
[1673640175330,63.43,17.27,17.25,97.90963294]
[1673640175865,63.43,17.27,17.252,97.27208466]
[1673640176261,63.43,17.27,17.251,97.37672672]
[1673640176480,43.43,17.27,17.253,97.42454799]
[1673640176688,130.7192,17.28,17.255,97.49848965]
[1673640176995,130.7192,17.28,17.256,36.6381928]
[1673640176996,110.7192,17.28,17.256,36.6381928]
[1673640177221,43.41,17.279,17.256,36.6381928]
[1673640177431,43.41,17.279,17.257,73.4391928]
[1673640177847,63.41,17.279,17.257,73.4391928]
[1673640178059,20.0,17.278,17.257,43.47]
[1673640178480,43.42,17.277,17.257,43.47]
[1673640178696,43.42,17.277,17.258,29.9691928]
[1673640178912,154.1292,17.28,17.26,38.12]
[1673640179325,154.1292,17.28,17.261,73.4291928]
[1673640179522,332.4292,17.28,17.261,43.46]
[1673640179852,154.1292,17.28,17.261,43.46]
[1673640180046,154.1292,17.28,17.261,73.4291928]
[1673640180465,43.41,17.28,17.261,73.4291928]
[1673640180694,117.4596,17.289,17.262,40.0]
[1673640180911,117.4596,17.289,17.27,38.12]
[1673640181104,117.4596,17.289,17.271,6.6632]
[1673640181318,43.39,17.288,17.27,38.12]
[1673640181518,43.39,17.288,17.263,43.45]
[1673640181729,20.0,17.287,17.27,43.43]
[1673640181954,20.0,17.287,17.265,29.9691928]
[1673640182356,20.0,17.287,17.266,43.44]
[1673640182788,20.0,17.287,17.265,29.9691928]
[1673640183007,43.39,17.286,17.267,29.9691928]
[1673640183197,221.69,17.286,17.266,29.9691928]
[1673640183412,251.6591928,17.286,17.261,43.46]
[1673640183613,20.0,17.285,17.26,38.12]
[1673640183827,20.0,17.285,17.25,38.04]
[1673640184057,178.3,17.283,17.25,38.04]
[1673640184268,178.3,17.283,17.251,43.48]
[1673640184477,178.3,17.281,17.251,43.48]
[1673640184691,20.0,17.279,17.252,26.67054]
[1673640184906,198.3,17.279,17.252,56.6397328]
[1673640185095,198.3,17.277,17.253,43.48]
[1673640185307,198.3,17.277,17.254,20.0]
[1673640185531,178.3,17.275,17.254,20.0]
[1673640185742,178.3,17.273,17.251,43.48]
[1673640185962,20.0,17.272,17.248,73.4591928]
[1673640186179,198.3,17.271,17.248,29.9691928]
[1673640186383,198.3,17.271,17.249,43.49]
[1673640186575,20.0,17.269,17.249,43.49]
[1673640186786,20.0,17.269,17.24,38.06]
[1673640186787,20.0,17.269,17.245,43.5]
[1673640186998,20.0,17.269,17.245,50.17325]
[1673640186999,221.74,17.268,17.245,50.17325]
[1673640187325,43.44,17.268,17.246,49.9691928]
[1673640187537,43.44,17.268,17.246,29.9691928]
[1673640187730,43.44,17.268,17.247,73.4591928]
[1673640188069,43.43,17.27,17.248,29.9691928]
[1673640188274,43.42,17.276,17.25,38.12]
[1673640188589,154.3893,17.28,17.26,37.9]
[1673640189009,154.3893,17.28,17.261,43.46]
[1673640189625,20.0,17.279,17.261,43.46]
[1673640189844,20.0,17.279,17.25,81.52]
[1673640190058,43.41,17.278,17.251,26.67093]
[1673640190263,43.41,17.278,17.252,6.67054]
[1673640190474,43.41,17.278,17.26,38.0]
[1673640190693,43.41,17.279,17.261,26.66706]
[1673640190897,43.41,17.279,17.261,50.12706]
[1673640191214,43.4,17.282,17.261,50.12706]
[1673640191527,43.4,17.282,17.262,20.0]
[1673640191846,43.4,17.282,17.263,6.66629]
[1673640192161,43.4,17.282,17.263,50.11629]
[1673640192369,178.3,17.281,17.263,50.11629]
[1673640192564,19.5,17.28,17.25,28.0]
[1673640192773,178.3,17.279,17.251,6.67093]
[1673640193314,178.3,17.277,17.252,43.48]
[1673640193511,20.0,17.276,17.252,43.48]
[1673640193720,198.3,17.275,17.252,43.48]
[1673640193931,198.3,17.275,17.25,28.0]
[1673640194137,251.6891928,17.274,17.25,28.0]
[1673640194348,221.72,17.274,17.251,50.15093]
[1673640194682,20.0,17.273,17.251,50.15093]
[1673640194998,20.0,17.273,17.25,28.0]
[1673640195203,20.0,17.273,17.251,43.48]
[1673640195418,221.73,17.272,17.251,43.48]
[1673640195726,20.0,17.271,17.252,20.0]
[1673640195920,20.0,17.271,17.252,6.67054]
[1673640196131,20.0,17.27,17.252,6.67054]
[1673640196358,20.0,17.269,17.25,28.0]
[1673640196757,43.44,17.268,17.25,28.0]
[1673640197220,43.44,17.268,17.242,43.5]
[1673640197514,43.44,17.268,17.245,43.5]
[1673640197515,20.0,17.267,17.245,43.5]
[1673640197731,43.44,17.269,17.245,6.67325]
[1673640197930,43.44,17.267,17.246,50.16286]
[1673640198252,43.44,17.268,17.247,6.67248]
[1673640198466,43.44,17.269,17.247,6.67248]
[1673640198650,43.44,17.267,17.248,43.49]
[1673640198860,43.43,17.27,17.249,6.6717]
[1673640199416,20.0,17.269,17.249,6.6717]
[1673640199608,20.0,17.269,17.243,43.5]
[1673640199824,178.3,17.267,17.244,20.0]
[1673640200036,20.0,17.266,17.244,20.0]
[1673640200240,20.0,17.266,17.245,43.5]
[1673640200458,241.74,17.266,17.246,20.0]
[1673640200650,63.44,17.266,17.243,20.0]
[1673640200861,63.44,17.266,17.244,43.5]
[1673640201080,63.44,17.266,17.245,20.0]
[1673640201496,63.44,17.266,17.246,43.49]
[1673640201711,241.74,17.266,17.246,43.49]
[1673640202456,241.74,17.266,17.246,42.99]
[1673640203817,43.44,17.266,17.247,6.67248]
[1673640204035,43.44,17.267,17.247,6.67248]
[1673640204237,43.44,17.267,17.25,37.91]
[1673640204435,43.44,17.269,17.251,20.0]
[1673640204646,115.3717,17.271,17.252,6.67054]
[1673640204855,115.3717,17.271,17.253,20.0]
[1673640205083,20.0,17.27,17.253,63.48]
[1673640205289,63.43,17.27,17.253,63.48]
[1673640205491,241.73,17.27,17.253,43.48]
[1673640205919,241.73,17.27,17.251,43.48]
[1673640206127,241.73,17.27,17.25,37.91]
[1673640206448,63.43,17.27,17.25,67.8791928]
[1673640206658,63.43,17.27,17.251,43.48]
[1673640206849,43.43,17.27,17.25,67.8791928]
[1673640207064,43.43,17.27,17.252,29.9691928]
[1673640207273,43.42,17.275,17.253,6.67016]
[1673640207491,43.41,17.278,17.254,20.0]
[1673640207707,43.41,17.278,17.26,37.91]
[1673640207918,43.41,17.278,17.26,44.57745]
[1673640208236,43.41,17.278,17.261,73.4291928]
[1673640208445,43.41,17.278,17.261,29.9691928]
[1673640208658,159.2427,17.279,17.262,73.4191928]
[1673640208850,43.41,17.279,17.262,49.9691928]
[1673640209059,113.2175,17.28,17.263,103.3883856]
[1673640209277,113.2175,17.28,17.264,26.66591]
[1673640209604,43.41,17.279,17.264,56.6351028]
[1673640209800,113.2175,17.28,17.265,43.45]
[1673640210019,113.2175,17.28,17.265,29.9691928]
[1673640210333,43.4,17.283,17.27,38.04]
[1673640210752,43.39,17.287,17.27,38.04]
[1673640211814,63.39,17.287,17.27,38.04]
[1673640212130,241.69,17.287,17.27,38.04]
[1673640212332,20.0,17.286,17.27,38.04]
[1673640212657,63.39,17.287,17.266,29.9691928]
[1673640212853,43.4,17.285,17.266,36.6343228]
[1673640213069,43.4,17.285,17.267,43.44]
[1673640213275,63.39,17.288,17.267,73.4091928]
[1673640213483,42.9,17.284,17.267,73.4091928]
[1673640213700,221.69,17.287,17.267,73.4091928]
[1673640213899,20.0,17.286,17.267,43.44]
[1673640214105,20.0,17.286,17.264,20.0]
[1673640214106,20.0,17.286,17.266,29.9691928]
[1673640214328,43.4,17.285,17.268,29.9691928]
[1673640214647,43.39,17.287,17.269,26.66398]
[1673640214859,43.39,17.287,17.269,70.10398]
[1673640215058,137.4596,17.289,17.27,29.9691928]
[1673640215059,43.39,17.288,17.27,29.9691928]
[1673640215270,43.39,17.288,17.271,20.0]
[1673640215479,42.39,17.288,17.271,63.43]
[1673640215690,42.39,17.288,17.271,93.3991928]
[1673640216007,42.39,17.288,17.271,49.9691928]
[1673640216223,42.39,17.288,17.271,20.0]
[1673640216543,42.39,17.288,17.27,81.43]
[1673640216544,220.69,17.288,17.27,81.43]
[1673640216740,20.0,17.287,17.26,37.91]
[1673640216952,20.0,17.287,17.264,29.9691928]
[1673640217271,20.0,17.285,17.264,36.6351028]
[1673640217689,43.4,17.284,17.265,73.4191928]
[1673640218109,43.39,17.286,17.27,38.12]
[1673640218437,43.39,17.288,17.271,29.9691928]
[1673640218841,20.0,17.287,17.27,44.78359]
[1673640219044,20.0,17.287,17.27,38.12]
[1673640219259,43.39,17.286,17.27,38.12]
[1673640219888,20.0,17.285,17.27,38.12]
[1673640220437,20.0,17.285,17.268,43.44]
[1673640220624,178.3,17.283,17.262,43.45]
[1673640220828,178.3,17.283,17.261,43.46]
[1673640221048,20.0,17.281,17.26,37.91]
[1673640221264,20.0,17.279,17.26,37.91]
[1673640221586,198.3,17.279,17.25,38.04]
[1673640221782,178.3,17.277,17.25,38.04]
[1673640221992,20.0,17.276,17.251,43.48]
[1673640222200,178.3,17.275,17.251,73.4491928]
[1673640222430,178.3,17.273,17.251,43.48]
[1673640222631,178.3,17.273,17.25,38.04]
[1673640222852,20.0,17.272,17.25,38.04]
[1673640223162,178.3,17.271,17.25,38.04]
[1673640223378,20.0,17.27,17.25,38.04]
[1673640223777,178.3,17.269,17.244,43.5]
[1673640224093,2.42696784,17.268,17.247,43.49]
[1673640224310,20.0,17.268,17.245,29.9691928]
[1673640224517,178.3,17.267,17.246,20.0]
[1673640224740,178.3,17.267,17.244,43.5]
[1673640224741,20.0,17.266,17.244,43.5]
[1673640224954,2.45174568,17.265,17.242,97.40896041]
[1673640225173,20.0,17.264,17.231,97.33179817]
[1673640225474,198.30841413,17.263,17.237,97.6155543]
[1673640225678,20.0,17.262,17.237,97.6155543]
[1673640225887,195.3,17.261,17.237,97.6155543]
[1673640226097,20.0,17.26,17.237,97.6155543]
[1673640226303,178.3,17.259,17.239,97.95230116]
[1673640226521,198.3,17.259,17.234,97.94003078]
[1673640226726,178.3,17.257,17.232,97.73333957]
[1673640226945,178.3,17.257,17.231,43.53]
[1673640226946,17.0,17.256,17.231,97.33179817]
[1673640227140,20.0,17.254,17.232,97.73333957]
[1673640227345,2.49381609,17.251,17.225,97.77943462]
[1673640227566,178.3,17.25,17.227,97.61211219]
[1673640227783,221.78,17.25,17.229,97.37355855]
[1673640227983,43.48,17.25,17.228,97.65341938]
[1673640228210,20.0,17.249,17.228,97.65341938]
[1673640228402,20.0,17.249,17.23,97.93038543]
[1673640228612,178.3,17.247,17.23,97.93038543]
[1673640228837,20.0,17.246,17.23,97.93038543]
[1673640229052,241.79,17.246,17.23,97.93038543]
[1673640229241,198.3,17.246,17.23,97.93038543]
[1673640229460,43.5,17.245,17.23,97.93038543]
[1673640229668,20.0,17.244,17.23,97.93038543]
[1673640229993,43.5,17.245,17.23,97.93038543]
[1673640230194,43.49,17.248,17.23,97.93038543]
[1673640230409,43.49,17.248,17.23,141.46038543]
[1673640230622,43.49,17.248,17.232,97.73333957]
[1673640230822,43.48,17.25,17.232,97.73333957]
[1673640231029,43.48,17.25,17.232,141.26333957]
[1673640231470,43.48,17.25,17.222,58.48213285]
[1673640231471,221.78,17.25,17.223,97.04278925]
[1673640231682,20.0,17.249,17.225,97.77943462]
[1673640231992,20.0,17.249,17.227,97.61211219]
[1673640232208,43.49,17.248,17.229,97.37355855]
[1673640232406,221.79,17.248,17.225,97.77943462]
[1673640232616,20.0,17.247,17.227,97.61211219]
[1673640232826,20.0,17.247,17.225,97.77943462]
[1673640233154,20.0,17.245,17.227,97.61211219]
[1673640233550,43.5,17.244,17.227,97.61211219]
[1673640233977,20.0,17.243,17.227,97.61211219]
[1673640234409,43.5,17.242,17.229,97.37355855]
[1673640234616,63.5,17.242,17.229,97.37355855]
[1673640234832,20.0,17.241,17.229,97.37355855]
[1673640235240,20.0,17.241,17.228,58.48213285]
[1673640235463,178.3,17.239,17.221,97.10389757]
[1673640235782,178.3,17.239,17.22,1.73134777]
[1673640235783,58.00208185,17.238,17.223,97.27093551]
[1673640235998,58.00208185,17.238,17.22,1.73134777]
[1673640235999,109.95209123,17.238,17.22,1.73134777]
[1673640236197,109.95209123,17.238,17.21,43.58]
[1673640236198,71.95000938,17.237,17.21,43.58]
[1673640236418,95.63236938,17.237,17.206,43.59]
[1673640236730,96.87846894,17.236,17.21,37.9]
[1673640236930,43.52,17.236,17.21,37.9]
[1673640237140,20.0,17.234,17.211,43.58]
[1673640237454,20.0,17.234,17.181,90.90376112]
[1673640237455,23.68236,17.233,17.181,90.90376112]
[1673640237665,38.12,17.22,17.184,6.69694]
[1673640237874,20.34047796,17.219,17.184,6.69694]
[1673640238201,40.0,17.218,17.185,3.741]
[1673640238397,37.98,17.21,17.185,3.741]
[1673640238607,17.0,17.209,17.184,3.741]
[1673640239032,20.0,17.208,17.173,20.0]
[1673640239242,17.0,17.207,17.184,43.65]
[1673640239560,17.0,17.207,17.17,38.0]
[1673640239561,17.0,17.207,17.172,43.68]
[1673640239772,20.0,17.205,17.174,43.68]
[1673640239984,43.68236,17.204,17.171,43.68]
[1673640240195,38.12,17.2,17.172,20.0]
[1673640240393,6.68236,17.199,17.172,20.0]
[1673640240607,50.29236,17.199,17.173,43.68]
[1673640240818,50.29236,17.199,17.172,43.68]
[1673640241140,6.68236,17.198,17.171,43.68]
[1673640241452,20.0,17.197,17.171,43.68]
[1673640241663,6.68236,17.196,17.171,43.68]
[1673640241868,1.0,17.195,17.171,43.68]
[1673640242081,26.68236,17.194,17.162,43.71]
[1673640242282,1.0,17.192,17.162,43.71]
[1673640242495,1.0,17.19,17.161,4.505]
[1673640242832,6.68236,17.189,17.161,4.505]
[1673640243144,1.0,17.188,17.161,4.505]
[1673640243543,43.64,17.187,17.161,4.505]
[1673640243760,2.45301958,17.186,17.161,4.505]
[1673640244077,2.45301958,17.186,17.162,20.0]
[1673640244286,38.12,17.21,17.17,38.12]
[1673640244501,6.68236,17.198,17.17,38.12]
[1673640244722,50.29236,17.198,17.171,4.503]
[1673640245034,20.0,17.196,17.164,4.505]
[1673640245243,6.68236,17.195,17.171,20.0]
[1673640245752,43.61,17.198,17.172,4.457]
[1673640245965,50.29236,17.198,17.172,4.457]
[1673640246393,50.29236,17.198,17.171,4.458]
[1673640246604,50.29236,17.198,17.171,24.458]
[1673640247544,20.0,17.197,17.171,4.458]
[1673640247775,26.68236,17.196,17.17,38.12]
[1673640247984,20.0,17.194,17.171,4.458]
[1673640248194,37.82,17.19,17.171,4.458]
[1673640248516,222.98236,17.189,17.15,38.12]
[1673640248712,6.68236,17.188,17.15,38.12]
[1673640248916,38.08,17.18,17.151,4.578]
[1673640249129,23.68236,17.179,17.151,4.578]
[1673640249348,6.68236,17.178,17.151,4.578]
[1673640249555,17.0,17.177,17.151,4.578]
[1673640249757,26.68236,17.176,17.151,4.578]
[1673640249966,6.68236,17.175,17.151,4.578]
[1673640250178,96.54396738,17.175,17.151,4.578]
[1673640250610,38.12,17.17,17.146,4.579]
[1673640250808,38.12,17.17,17.145,97.95699812]
[1673640250809,6.68236,17.169,17.145,97.95699812]
[1673640251023,20.0,17.168,17.145,97.95699812]
[1673640251234,20.0,17.168,17.138,97.46742917]
[1673640251235,6.68236,17.167,17.138,97.46742917]
[1673640251459,37.0,17.166,17.138,97.46742917]
[1673640251645,26.68236,17.165,17.139,5.021]
[1673640251860,20.0,17.163,17.131,5.024]
[1673640252073,6.68236,17.162,17.131,5.024]
[1673640252277,37.0,17.161,17.131,5.024]
[1673640252490,44.50236,17.16,17.126,5.025]
[1673640252713,20.0,17.158,17.127,20.0]
[1673640253034,6.68236,17.157,17.127,20.0]
[1673640253230,50.40236,17.157,17.128,5.024]
[1673640253654,6.68236,17.157,17.128,5.024]
[1673640253869,43.72,17.156,17.13,38.12]
[1673640254181,20.0,17.169,17.14,38.0]
[1673640254507,6.68236,17.168,17.144,24.896]
[1673640254704,6.68236,17.168,17.144,4.896]
[1673640254909,43.69,17.167,17.144,4.896]
[1673640255121,6.68236,17.166,17.144,4.896]
[1673640255330,26.68236,17.166,17.144,24.896]
[1673640255541,43.7,17.165,17.144,24.896]
[1673640255756,6.68236,17.164,17.144,24.896]
[1673640256167,6.68236,17.164,17.144,20.0]
[1673640256382,43.7,17.163,17.144,24.896]
[1673640256592,43.7,17.163,17.144,4.896]
[1673640257231,112.9031,17.174,17.145,20.0]
[1673640257457,112.9031,17.174,17.15,38.12]
[1673640257992,112.9031,17.174,17.151,24.812]
[1673640257993,26.68236,17.171,17.151,24.812]
[1673640258221,6.68236,17.171,17.151,4.812]
[1673640258517,50.37236,17.17,17.146,4.814]
[1673640258923,6.68236,17.17,17.146,4.814]
[1673640259130,6.68236,17.17,17.145,4.814]
[1673640259352,6.68236,17.169,17.144,24.814]
[1673640260094,43.68,17.172,17.144,24.814]
[1673640260400,112.9031,17.174,17.144,24.814]
[1673640260616,112.9031,17.174,17.15,38.12]
[1673640260822,112.9031,17.174,17.152,20.0]
[1673640261037,43.67,17.178,17.153,20.0]
[1673640261226,20.0,17.188,17.153,4.717]
[1673640261227,43.65,17.186,17.153,4.717]
[1673640261430,50.35236,17.177,17.153,4.717]
[1673640261646,110.5941,17.186,17.16,38.12]
[1673640261647,154.2441,17.186,17.16,38.12]
[1673640261984,6.68236,17.185,17.161,20.0]
[1673640262173,6.68236,17.185,17.161,27.827]
[1673640262385,43.65,17.184,17.161,27.827]
[1673640263010,6.68236,17.185,17.161,27.827]
[1673640263223,43.63,17.191,17.161,27.827]
[1673640263446,43.61,17.198,17.17,37.91]
[1673640263648,6.68236,17.197,17.17,37.91]
[1673640263865,6.68236,17.197,17.171,36.26]
[1673640263866,26.68236,17.197,17.171,36.26]
[1673640264074,43.62,17.196,17.171,36.26]
[1673640264289,6.68236,17.195,17.171,36.26]
[1673640264688,43.63,17.194,17.171,36.26]
[1673640265216,6.68236,17.195,17.171,36.26]
[1673640265217,20.0,17.193,17.171,16.26]
[1673640265426,50.31236,17.193,17.167,29.9691928]
[1673640265642,6.68236,17.193,17.17,38.12]
[1673640265847,43.62,17.197,17.171,20.0]
[1673640266086,43.61,17.198,17.171,17.81]
[1673640266272,6.68236,17.197,17.171,17.81]
[1673640266711,6.68236,17.197,17.172,20.0]
[1673640267336,6.68236,17.197,17.173,20.49]
[1673640267552,73.5691928,17.202,17.18,38.12]
[1673640267756,43.6,17.204,17.181,20.0]
[1673640267964,43.6,17.204,17.181,39.59]
[1673640268172,43.6,17.203,17.181,39.59]
[1673640268610,73.5691928,17.205,17.181,39.59]
[1673640268817,43.6,17.205,17.181,39.59]
[1673640269331,43.59,17.207,17.181,39.59]
[1673640269740,50.27236,17.207,17.182,17.0]
[1673640269958,50.27236,17.207,17.183,20.0]
[1673640270160,50.27236,17.207,17.183,46.13]
[1673640270373,50.27236,17.207,17.183,20.0]
[1673640270578,6.68236,17.207,17.184,28.47]
[1673640270789,50.27236,17.207,17.185,20.0]
[1673640271009,43.59,17.207,17.185,20.0]
[1673640271217,43.59,17.207,17.186,47.42]
[1673640271424,43.58,17.21,17.186,47.42]
[1673640271854,43.58,17.211,17.186,47.42]
[1673640272176,43.59,17.209,17.19,38.12]
[1673640272399,43.58,17.213,17.191,20.0]
[1673640272590,43.58,17.213,17.191,55.83]
[1673640272784,43.57,17.214,17.191,55.83]
[1673640272995,73.5491928,17.212,17.191,35.83]
[1673640273211,26.68236,17.211,17.181,37.64]
[1673640273531,184.98236,17.21,17.181,37.64]
[1673640273746,26.68236,17.209,17.181,37.64]
[1673640273936,6.68236,17.208,17.181,37.64]
[1673640274146,17.0,17.207,17.174,29.9691928]
[1673640274354,6.68236,17.206,17.175,20.0]
[1673640274577,6.68236,17.206,17.18,37.76]
[1673640274797,43.6,17.205,17.18,37.76]
[1673640274988,43.59,17.208,17.181,30.99]
[1673640275200,43.59,17.209,17.182,20.0]
[1673640275404,20.0,17.206,17.182,20.0]
[1673640275641,6.68236,17.205,17.183,31.53]
[1673640275850,50.28236,17.205,17.184,20.0]
[1673640276046,50.28236,17.205,17.183,31.6]
[1673640276269,50.28236,17.205,17.184,20.0]
[1673640276689,50.28236,17.205,17.18,37.76]
[1673640276690,6.68236,17.205,17.185,30.95]
[1673640276918,43.59,17.208,17.186,20.0]
[1673640277127,43.59,17.208,17.183,20.0]
[1673640277328,43.59,17.209,17.184,33.59]
[1673640277538,20.0,17.208,17.185,20.0]
[1673640278077,20.0,17.208,17.186,36.17]
[1673640278386,43.59,17.209,17.186,36.17]
[1673640278387,63.59,17.209,17.186,36.17]
[1673640278812,63.59,17.209,17.187,17.0]
[1673640279013,43.59,17.209,17.19,38.12]
[1673640279215,43.59,17.209,17.191,20.0]
[1673640279424,43.58,17.213,17.191,59.48]
[1673640279646,43.57,17.214,17.192,20.0]
[1673640280075,43.57,17.214,17.193,63.03]